bitfinex-derivatives/quotes_SOLF0:USTF0_20241222
["timestamp","ask_amount","ask_price","bid_price","bid_amount"]
[1734876321005,3.02,184.44,184.36,0.25453]
[1734876321898,3.02,184.44,184.36,4.55853]
[1734876322098,5.0528,184.53,184.36,1.84473]
[1734876322298,3.92735809,184.52,184.36,3.44483]
[1734876322499,3.02,184.52,184.36,3.44483]
[1734876322899,3.02,184.52,184.4,2.7132]
[1734876323096,3.02,184.52,184.36,3.44483]
[1734876323502,3.02,184.52,184.39,2.7133]
[1734876323704,3.02,184.52,184.36,3.44483]
[1734876323904,3.02,184.51,184.36,3.44483]
[1734876324301,1.5933,184.58,184.36,3.44483]
[1734876324501,3.02,184.55,184.36,3.44483]
[1734876325008,1.5933,184.58,184.36,3.44483]
[1734876325205,3.92700683,184.57,184.4,2.7131]
[1734876325410,0.90700683,184.56,184.39,3.02]
[1734876325810,0.90700683,184.56,184.39,5.7333]
[1734876326110,0.90700683,184.56,184.39,3.02]
[1734876326906,0.90700683,184.56,184.39,5.7333]
[1734876327102,0.90700683,184.56,184.39,2.7133]
[1734876327308,17.13700683,184.56,184.36,3.44483]
[1734876327509,0.90700683,184.55,184.36,3.44483]
[1734876327810,37.62554656,184.55,184.36,3.44483]
[1734876328010,16.23,184.53,184.36,3.44483]
[1734876328207,7.33440683,184.52,184.37,2.7135]
[1734876328405,0.90700683,184.51,184.37,2.7135]
[1734876328604,6.4274,184.52,184.37,2.7135]
[1734876329610,0.90728882,184.51,184.37,2.7135]
[1734876329807,0.90728882,184.51,184.36,3.44483]
[1734876330004,16.23,184.49,184.36,0.25453]
[1734876330209,0.90743367,184.48,184.29,3.3217]
[1734876330409,16.23,184.49,184.29,3.3217]
[1734876330612,0.90768942,184.48,184.29,3.3217]
[1734876330812,17.13768942,184.48,184.29,3.3217]
[1734876331003,27.68799021,184.48,184.29,3.3217]
[1734876331204,0.90767838,184.47,184.29,3.3217]
[1734876331403,0.90767838,184.47,184.28,2.715]
[1734876331404,0.90767838,184.47,184.26,59.32425926]
[1734876331608,0.90767451,184.46,184.3,2.7147]
[1734876331808,3.92767451,184.45,184.29,3.02]
[1734876332010,3.02,184.45,184.29,3.02]
[1734876332304,3.02,184.45,184.32,2.7143]
[1734876333316,3.2,184.44,184.29,3.02]
[1734876333520,3.2,184.43,184.33,2.7142]
[1734876333913,3.2,184.43,184.29,3.02]
[1734876334114,3.2,184.43,184.34,2.7141]
[1734876334915,3.2,184.43,184.35,1.7172]
[1734876335616,3.2,184.43,184.29,2.7147]
[1734876335817,3.2,184.43,184.3,1.7172]
[1734876336009,1.6198,184.42,184.3,1.7172]
[1734876336508,3.2,184.44,184.3,1.7172]
[1734876336815,3.2,184.43,184.32,2.7144]
[1734876337017,3.2,184.43,184.3,1.7172]
[1734876337606,3.3493,184.42,184.3,1.7172]
[1734876339114,3.3493,184.42,184.31,2.7145]
[1734876339311,3.3493,184.42,184.3,1.7172]
[1734876340016,19.5793,184.42,184.28,0.27489]
[1734876340207,0.90786149,184.41,184.28,0.27489]
[1734876340711,19.5793,184.42,184.28,0.27489]
[1734876340917,0.90785467,184.41,184.28,0.27489]
[1734876342224,0.90785467,184.41,184.15,59.32425926]
[1734876342516,0.90785467,184.4,184.15,53.30905926]
[1734876342718,16.23,184.38,184.15,53.30905926]
[1734876343015,16.23,184.36,184.15,50.68375926]
[1734876343218,16.23,184.34,184.15,50.68375926]
[1734876343415,16.23,184.32,184.05,88.98638889]
[1734876343613,16.23,184.3,184.05,88.98638889]
[1734876343814,4.10882343,184.29,184.05,88.98638889]
[1734876344019,4.10882343,184.28,184.05,88.98638889]
[1734876344318,0.90869043,184.27,184.05,88.98638889]
[1734876344822,0.90869043,184.27,184.03,1.7491]
[1734876345025,0.90869043,184.27,184.04,2.7185]
[1734876345314,0.90869043,184.27,184.03,1.7491]
[1734876345819,0.90869043,184.27,184.03,4.4677]
[1734876346216,4.10869043,184.26,184.03,1.7491]
[1734876346520,3.2,184.26,184.03,1.7491]
[1734876347420,0.90889697,184.25,184.03,1.7491]
[1734876348115,0.90889697,184.25,184.07,2.7181]
[1734876348316,1.7279,184.24,184.07,2.7181]
[1734876348621,1.7279,184.24,184.03,4.9491]
[1734876349118,1.7279,184.24,184.08,2.7178]
[1734876349917,1.7279,184.24,184.06,2.7181]
[1734876350108,1.7279,184.24,184.03,1.7491]
[1734876350311,0.90900684,184.23,184.03,1.7491]
[1734876350820,1.7279,184.24,184.03,1.7491]
[1734876351221,0.90901064,184.23,184.03,1.7491]
[1734876351415,1.7279,184.24,184.03,1.7491]
[1734876351823,0.90901072,184.23,184.03,1.7491]
[1734876352020,1.7279,184.24,184.04,2.7185]
[1734876352323,4.12900987,184.23,184.03,1.7491]
[1734876352527,3.22,184.23,184.03,1.7491]
[1734876352724,3.22,184.22,184.03,4.9691]
[1734876353122,1.7279,184.24,184.09,2.7177]
[1734876353426,0.90887153,184.23,184.1,1.7498]
[1734876353619,3.22,184.22,184.11,3.3123]
[1734876353824,3.22,184.21,184.12,2.7173]
[1734876354021,3.22,184.21,184.11,3.3123]
[1734876356326,3.22,184.21,184.11,1.6444]
[1734876358023,3.76,184.2,184.11,1.6444]
[1734876358221,3.76,184.19,184.11,1.6444]
[1734876359224,3.76,184.2,184.11,1.6444]
[1734876359818,3.76,184.2,184.11,4.3618]
[1734876360322,3.76,184.2,184.11,1.6444]
[1734876360827,16.23,184.29,184.11,1.6444]
[1734876361019,16.23,184.27,184.11,1.6444]
[1734876361621,16.23,184.27,184.11,4.3619]
[1734876361827,16.23,184.27,184.11,1.6444]
[1734876362028,3.76,184.26,184.11,1.6444]
[1734876362530,3.76,184.26,184.12,2.7173]
[1734876362824,3.76,184.25,184.11,1.6444]
[1734876363030,3.76,184.24,184.11,1.6444]
[1734876363331,3.76,184.23,184.11,1.6444]
[1734876363520,3.76,184.22,184.11,1.6444]
[1734876364826,3.1959,184.21,184.11,1.6444]
[1734876365027,16.23,184.31,184.11,1.6444]
[1734876365229,24.09466302,184.3,184.11,1.6444]
[1734876365429,0.90876302,184.29,184.11,1.6444]
[1734876366128,0.90876302,184.29,184.12,2.7173]
[1734876366330,3.76,184.28,184.11,1.6444]
[1734876366531,3.76,184.28,184.13,2.7171]
[1734876366724,0.90867549,184.27,184.14,1.7467]
[1734876366931,3.76,184.28,184.14,1.7467]
[1734876367330,3.1959,184.3,184.14,1.7467]
[1734876367531,3.76,184.27,184.14,1.7467]
[1734876368032,3.1959,184.3,184.15,2.7169]
[1734876368232,4.66859526,184.29,184.15,2.7169]
[1734876368426,3.1959,184.3,184.15,2.7169]
[1734876368627,0.90859319,184.29,184.14,1.7467]
[1734876368823,3.76,184.28,184.14,1.7467]
[1734876369027,0.90859319,184.27,184.14,1.7467]
[1734876369733,3.76,184.28,184.14,1.7467]
[1734876369936,0.90866976,184.27,184.14,1.7467]
[1734876370635,3.76,184.28,184.14,5.5067]
[1734876370835,3.1959,184.3,184.14,5.5067]
[1734876371031,3.76,184.29,184.14,5.5067]
[1734876371231,3.1959,184.3,184.14,5.5067]
[1734876371434,4.6685656,184.29,184.14,5.5067]
[1734876371631,3.76,184.29,184.14,5.5067]
[1734876371827,3.76,184.29,184.14,8.2237]
[1734876372032,3.76,184.29,184.14,4.4637]
[1734876372235,3.1959,184.3,184.14,4.4637]
[1734876372431,4.66857649,184.29,184.14,1.7467]
[1734876372633,0.90857649,184.28,184.14,1.7467]
[1734876373237,3.76,184.29,184.14,1.7467]
[1734876373535,0.90861531,184.28,184.14,1.7467]
[1734876375230,0.9087,184.27,184.14,1.7467]
[1734876375432,0.9087,184.26,184.14,1.7467]
[1734876375638,3.76,184.29,184.14,1.7467]
[1734876375830,0.90869633,184.28,184.14,1.7467]
[1734876376330,3.76,184.29,184.14,1.7467]
[1734876376530,0.90860714,184.28,184.14,1.7467]
[1734876377528,17.13860714,184.28,184.14,1.7467]
[1734876377732,0.90860714,184.27,184.14,1.7467]
[1734876378440,0.90868785,184.26,184.14,1.7467]
[1734876378639,0.90868785,184.25,184.14,1.7467]
[1734876378835,16.23,184.28,184.14,1.7467]
[1734876379041,0.90871709,184.27,184.11,1.6444]
[1734876381139,0.90872886,184.26,184.11,1.6444]
[1734876381339,4.66872886,184.25,184.11,1.6444]
[1734876381535,3.76,184.25,184.12,2.7173]
[1734876382243,19.99,184.25,184.11,1.6444]
[1734876382540,0.90879313,184.24,184.06,1.5797]
[1734876383335,16.23,184.23,184.05,3.3863]
[1734876383539,0.90912508,184.22,184.05,3.3863]
[1734876383740,20.44422508,184.22,184.05,3.3863]
[1734876384037,0.90912508,184.21,184.05,3.3863]
[1734876384235,55.3007429,184.22,184.05,3.3863]
[1734876384436,0.90906601,184.21,184.05,3.3863]
[1734876385046,16.23,184.2,183.98,61.47511177]
[1734876385246,16.23,184.18,183.99,1.7414]
[1734876385445,0.90906601,184.17,183.99,1.7414]
[1734876385746,0.90937322,184.16,183.99,1.7414]
[1734876385947,0.90937322,184.15,183.99,1.7414]
[1734876386243,0.90947093,184.14,183.99,4.4606]
[1734876386444,20.30872921,184.16,183.99,4.4606]
[1734876386445,4.50947093,184.13,183.99,4.4606]
[1734876386647,4.50947093,184.13,183.99,1.7414]
[1734876386648,3.6,184.13,183.99,1.7414]
[1734876386945,3.6,184.13,184.01,2.7189]
[1734876387643,3.6,184.13,183.99,8.0606]
[1734876387843,3.6,184.13,183.99,4.4606]
[1734876388337,3.6,184.13,183.99,1.7414]
[1734876389040,3.6,184.13,183.92,3.6]
[1734876389238,3.6,184.13,183.92,8.6468]
[1734876389544,3.4614,184.12,183.92,8.6468]
[1734876389743,20.47317719,184.18,183.92,8.6468]
[1734876390046,4.50936214,184.17,183.92,8.6468]
[1734876390244,0.90936214,184.16,183.99,2.7192]
[1734876390449,0.90936214,184.16,184.0,1.6876]
[1734876390745,0.90936214,184.16,184.01,3.3592]
[1734876391141,0.90941038,184.15,184.01,3.3592]
[1734876391348,0.90941038,184.14,184.01,3.3592]
[1734876391538,3.6,184.13,184.01,3.3592]
[1734876391743,38.05195758,184.2,184.01,3.3592]
[1734876392052,58.19188688,184.21,184.02,2.7187]
[1734876392053,4.50921178,184.19,184.02,2.7187]
[1734876392347,0.90921178,184.18,184.02,2.7187]
[1734876392547,0.90921178,184.18,184.01,3.3592]
[1734876392747,4.50921178,184.17,184.01,3.3592]
[1734876392950,3.6,184.17,184.01,3.3592]
[1734876394049,0.90922357,184.16,184.01,6.0781]
[1734876394346,0.90922357,184.16,184.01,3.3592]
[1734876395447,0.90922357,184.16,184.01,6.0779]
[1734876396249,3.6,184.17,184.01,6.0779]
[1734876396549,0.9092455,184.16,184.01,6.0779]
[1734876396749,0.9092455,184.16,184.01,3.3592]
[1734876398051,0.9092455,184.16,183.9,1.96316258]
[1734876398241,0.9092455,184.16,183.91,5.0991]
[1734876398440,16.23,184.15,183.91,5.0991]
[1734876398650,0.9092455,184.14,183.92,2.72]
[1734876399042,16.23,184.12,183.91,5.0991]
[1734876399243,0.9092455,184.11,183.92,3.6]
[1734876399444,4.5092455,184.11,183.92,3.6]
[1734876399643,0.9092455,184.1,183.92,3.6]
[1734876400049,19.83,184.11,183.92,3.6]
[1734876400246,19.83,184.11,183.97,2.7193]
[1734876400447,3.6,184.11,183.92,3.6]
[1734876401354,3.6,184.11,184.02,2.7184]
[1734876401562,3.6,184.11,184.03,4.9538]
[1734876401757,16.23,184.17,184.03,4.9538]
[1734876401952,4.5091514,184.16,184.03,4.9538]
[1734876402151,3.6,184.16,184.03,7.6721]
[1734876402549,3.6,184.15,184.03,4.9538]
[1734876404357,3.6,184.15,183.9,1.96316258]
[1734876404558,0.90921652,184.14,184.0,2.7188]
[1734876404856,0.90921652,184.14,184.01,1.583]
[1734876405063,3.6,184.15,184.05,2.718]
[1734876405363,3.6,184.15,184.02,3.2955]
[1734876405861,3.6,184.15,184.06,2.7178]
[1734876406356,3.6,184.15,184.05,2.7181]
[1734876407360,3.6,184.15,184.04,2.7182]
[1734876407661,3.6,184.15,184.02,3.2955]
[1734876407863,19.83,184.15,184.02,3.2955]
[1734876408362,19.4454,184.2,184.03,3.6]
[1734876408559,0.90908971,184.19,184.03,3.6]
[1734876409062,7.7855,184.0,183.99,2.719]
[1734876409262,5.197,184.2,183.99,2.719]
[1734876409263,5.197,184.2,183.99,3.6]
[1734876409465,1.597,184.2,183.99,3.6]
[1734876409870,1.597,184.2,184.09,2.7174]
[1734876410865,1.597,184.2,184.08,3.6]
[1734876411066,1.597,184.2,184.1,2.7173]
[1734876411275,1.597,184.2,184.08,3.6]
[1734876411567,16.23,184.26,184.11,2.7172]
[1734876411773,3.6,184.25,184.08,3.6]
[1734876412270,3.6,184.25,184.14,2.7166]
[1734876412765,23.45625758,184.27,184.15,2.7165]
[1734876412969,1.6343,184.27,184.14,3.6]
[1734876413168,5.2343,184.27,184.14,3.6]
[1734876413568,1.6343,184.27,184.17,2.7163]
[1734876413772,1.6343,184.27,184.14,3.6]
[1734876414571,1.6343,184.27,184.15,4.1722]
[1734876414761,1.6343,184.27,184.18,2.7161]
[1734876415167,1.6343,184.27,184.15,4.1722]
[1734876415365,1.6343,184.27,184.16,2.7164]
[1734876416673,1.6343,184.27,184.17,2.7163]
[1734876416973,1.6343,184.27,184.15,4.1722]
[1734876417666,1.6343,184.27,184.16,2.7165]
[1734876418373,1.6343,184.27,184.15,1.6773]
[1734876418374,0.90856976,184.26,184.15,1.6773]
[1734876419274,0.90856976,184.26,184.03,2.4908]
[1734876419467,0.90871342,184.25,184.04,5.4187]
[1734876419667,0.90871342,184.24,184.04,5.4187]
[1734876419973,17.8643,184.27,184.04,5.4187]
[1734876419974,20.8187745,184.23,184.04,5.4187]
[1734876420171,19.91,184.23,184.05,3.68]
[1734876420376,19.91,184.23,184.04,1.7387]
[1734876420578,0.90881041,184.22,184.05,3.68]
[1734876420777,19.91,184.23,184.05,3.68]
[1734876421974,0.90881022,184.22,184.09,2.7175]
[1734876423884,0.90881022,184.22,184.05,3.68]
[1734876423885,16.23,184.21,184.04,1.7387]
[1734876424079,16.23,184.19,184.04,1.7387]
[1734876424281,16.23,184.17,183.98,2.4929]
[1734876424481,2.49852818,184.18,183.98,2.4929]
[1734876424482,16.23,184.15,183.99,4.3075]
[1734876424683,18.74116419,184.14,183.99,4.3075]
[1734876424885,17.8319,184.14,183.99,4.3075]
[1734876425086,17.8319,184.14,183.99,1.5885]
[1734876425287,0.90930312,184.13,183.99,1.5885]
[1734876425681,17.9236,184.12,183.99,1.5885]
[1734876426185,0.90942139,184.11,183.99,1.5885]
[1734876426382,3.68,184.1,183.99,1.5885]
[1734876426688,5.3101,184.1,183.99,1.5885]
[1734876427183,21.5401,184.1,183.92,3.68]
[1734876427383,0.90944951,184.09,183.92,5.4209]
[1734876428287,0.90944951,184.09,183.92,1.7409]
[1734876428884,0.90944951,184.09,183.91,2.4941]
[1734876428885,21.5401,184.1,183.81,59.51276644]
[1734876429182,0.90966103,184.09,183.88,1.6077]
[1734876429586,0.90969215,184.08,183.88,1.6077]
[1734876429789,0.90969215,184.07,183.88,1.6077]
[1734876430089,0.90969215,184.06,183.88,1.6077]
[1734876430390,0.90969215,184.05,183.88,1.6077]
[1734876430590,24.15979215,184.04,183.82,2.495]
[1734876430784,3.68,184.03,183.83,5.2877]
[1734876431187,3.68,184.03,183.89,2.7205]
[1734876431587,3.68,184.03,183.83,5.2877]
[1734876432791,3.68,184.03,183.88,2.7205]
[1734876434790,3.68,184.03,183.86,2.7208]
[1734876435792,3.68,184.03,183.87,2.7207]
[1734876435992,1.6039,184.02,183.87,2.7207]
[1734876437285,1.6039,184.02,183.85,6.4009]
[1734876437487,17.9239,184.02,183.83,1.6077]
[1734876437693,0.90995844,184.01,183.83,1.6077]
[1734876437893,0.90995844,184.01,183.84,2.7211]
[1734876438097,0.90995844,184.01,183.83,1.6077]
[1734876438490,0.90995844,184.01,183.83,4.329]
[1734876438887,0.90995844,184.01,183.83,1.6077]
[1734876439091,0.90995844,184.01,183.79,3.97787]
[1734876439492,0.91010705,184.0,183.79,3.97787]
[1734876439798,0.91010705,183.99,183.79,3.97787]
[1734876440095,0.91010705,183.98,183.79,3.97787]
[1734876440295,20.91010705,183.97,183.79,0.29787]
[1734876440494,16.32,183.95,183.79,0.29787]
[1734876440797,21.6762,183.94,183.79,0.29787]
[1734876441198,21.6762,183.94,183.79,3.01977]
[1734876441795,21.6762,183.94,183.8,2.7217]
[1734876441999,21.6762,183.94,183.79,0.29787]
[1734876442000,5.3562,183.94,183.79,0.29787]
[1734876442300,5.3562,183.94,183.82,2.7215]
[1734876442499,22.2785,183.8,183.79,0.29787]
[1734876443203,14.6664,183.8,183.79,3.01977]
[1734876443394,13.3699,183.8,183.79,3.01977]
[1734876444192,13.3699,183.8,183.79,4.019582]
[1734876444396,13.3699,183.8,183.79,4.01958147]
[1734876444899,0.79655652,183.8,183.79,69.75958147]
[1734876445196,4.9259,184.04,183.92,2.72]
[1734876445701,4.9259,184.04,183.94,2.7197]
[1734876447500,4.9259,184.04,183.85,1.96371602]
[1734876447696,4.9259,184.04,183.87,3.52]
[1734876448097,21.2459,184.04,183.85,1.96371602]
[1734876448400,0.90986262,184.03,183.85,1.96371602]
[1734876448602,0.90986262,184.03,183.87,2.7207]
[1734876449001,21.2459,184.04,183.87,2.7207]
[1734876449298,2.719,183.99,183.85,1.96371602]
[1734876449502,3.52,183.98,183.89,2.7204]
[1734876449899,2.7198,183.94,183.89,2.7204]
[1734876450402,3.52,183.98,183.89,2.7204]
[1734876450604,2.7199,183.93,183.89,2.7204]
[1734876450803,2.7199,183.93,183.88,2.7206]
[1734876451004,3.52,183.98,183.88,2.7206]
[1734876451202,3.52,183.98,183.85,1.96371602]
[1734876451203,2.7204,183.9,183.85,4.68461602]
[1734876451408,3.52,183.98,183.85,4.68461602]
[1734876451803,3.52,183.98,183.85,1.96371602]
[1734876452004,2.7203,183.9,183.85,1.96371602]
[1734876452306,3.52,183.98,183.85,1.96371602]
[1734876452708,2.7206,183.89,183.85,4.68471602]
[1734876452907,19.84,183.98,183.85,1.96371602]
[1734876453110,3.52,183.97,183.85,1.96371602]
[1734876453307,2.7209,183.86,183.85,1.96371602]
[1734876453812,3.52,183.92,183.75,2.25614609]
[1734876453813,2.7213,183.84,183.8,2.7217]
[1734876454009,3.52,183.87,183.75,2.25614609]
[1734876454304,5.1897,183.86,183.75,2.25614609]
[1734876454610,2.7214,183.83,183.75,2.25614609]
[1734876454811,5.1897,183.86,183.75,2.25614609]
[1734876455817,2.7219,183.8,183.75,2.25614609]
[1734876456207,2.7219,183.8,183.76,2.7224]
[1734876456715,2.7213,183.83,183.76,2.7224]
[1734876456907,5.1897,183.86,183.76,2.7224]
[1734876458111,5.1897,183.86,183.75,2.25614609]
[1734876458912,5.1897,183.86,183.75,5.77614609]
[1734876459208,2.7205,183.89,183.85,2.721]
[1734876459421,3.52,183.95,183.75,2.25614609]
[1734876459706,2.7206,183.89,183.76,3.52]
[1734876459909,3.52,183.95,183.76,3.52]
[1734876460310,2.7203,183.91,183.76,3.52]
[1734876460609,5.1237,183.97,183.77,0.99999888]
[1734876460813,2.7194,183.96,183.77,0.99999888]
[1734876461306,2.7192,183.98,183.77,0.99999888]
[1734876461509,3.52,184.01,183.78,16.23]
[1734876461712,1.6875,184.04,183.8,16.23]
[1734876461904,1.6875,184.04,183.81,20.74999888]
[1734876462107,2.7188,184.01,183.96,2.7194]
[1734876462309,1.6875,184.04,183.96,2.7194]
[1734876463415,1.6875,184.04,183.94,3.52]
[1734876463615,1.6875,184.04,183.94,6.2397]
[1734876464011,2.7189,184.0,183.94,6.2397]
[1734876465005,2.7189,184.0,183.95,2.7196]
[1734876465717,1.6875,184.04,183.94,3.52]
[1734876467115,2.7188,184.0,183.95,2.7194]
[1734876467314,1.6875,184.04,183.94,3.52]
[1734876467711,2.7188,184.01,183.96,2.7194]
[1734876468723,2.7188,184.01,183.94,3.52]
[1734876469020,2.7188,184.01,183.96,2.7194]
[1734876469318,2.7184,184.03,183.94,3.52]
[1734876469715,2.7186,184.02,183.97,2.7191]
[1734876470116,1.6875,184.04,183.94,3.52]
[1734876470526,1.6749,184.05,183.94,3.52]
[1734876470721,3.52,184.08,183.94,3.52]
[1734876471223,4.961,184.1,183.94,3.52]
[1734876471619,2.7181,184.06,183.94,3.52]
[1734876472021,8.481,184.1,183.94,3.52]
[1734876472214,8.481,184.1,183.87,89.03689371]
[1734876472420,8.481,184.1,183.88,63.03276644]
[1734876472722,24.801,184.1,183.88,59.51276644]
[1734876472921,0.90959569,184.09,183.89,3.52]
[1734876473224,0.90959569,184.09,183.88,59.51276644]
[1734876473225,0.90959569,184.09,183.88,3.52]
[1734876473527,0.90959569,184.09,183.9,2.7203]
[1734876473917,2.7197,183.94,183.88,3.52]
[1734876474117,3.52,184.0,183.88,6.2405]
[1734876474320,2.7197,183.94,183.88,3.52]
[1734876475224,2.7197,183.94,183.89,2.7205]
[1734876475819,2.7197,183.94,183.9,2.7203]
[1734876476018,4.8723,183.99,183.88,3.52]
[1734876476221,2.7199,183.93,183.88,3.52]
[1734876476522,4.8723,183.99,183.86,3.38]
[1734876476722,4.8723,183.99,183.87,3.38]
[1734876476923,4.8723,183.99,183.84,3.38]
[1734876477824,2.72,183.93,183.88,2.7206]
[1734876478017,4.8723,183.99,183.84,3.38]
[1734876478421,4.8723,183.99,183.9,2.7202]
[1734876478422,2.7196,183.95,183.9,2.7202]
[1734876478822,2.7196,183.95,183.84,3.38]
[1734876479722,3.2446,183.99,183.84,3.38]
[1734876479927,2.7191,183.99,183.84,3.38]
[1734876480321,2.7191,183.99,183.95,2.7195]
[1734876481229,2.7191,183.98,183.94,2.7197]
[1734876484027,2.7191,183.98,183.92,3.38]
[1734876484028,3.38,184.03,183.92,3.38]
[1734876484230,3.38,184.03,183.95,2.7195]
[1734876484231,2.719,183.99,183.95,2.7195]
[1734876484830,3.38,184.03,183.88,3.38]
[1734876485023,3.3415,183.98,183.8,59.51276644]
[1734876485228,3.3415,183.98,183.81,3.38]
[1734876485428,1.6865,183.97,183.88,2.7206]
[1734876485628,1.6865,183.97,183.81,3.38]
[1734876486129,1.6865,183.97,183.82,3.38]
[1734876486523,2.7206,183.89,183.85,2.721]
[1734876486722,3.38,183.93,183.81,3.38]
[1734876486927,3.38,183.93,183.78,47.03393471]
[1734876487327,3.38,183.93,183.78,43.65393471]
[1734876487731,2.7205,183.89,183.79,2.7219]
[1734876487926,4.8958,183.88,183.79,2.7219]
[1734876488327,8.2758,183.88,183.79,2.7219]
[1734876488536,8.2758,183.88,183.78,43.65393471]
[1734876488737,8.2758,183.88,183.75,2.25614609]
[1734876489441,4.8958,183.88,183.76,3.38]
[1734876489640,21.82195758,184.03,183.76,3.38]
[1734876489641,3.38,183.95,183.76,3.38]
[1734876489941,2.7201,183.92,183.76,3.38]
[1734876490238,3.38,183.96,183.76,3.38]
[1734876490441,2.7202,183.91,183.76,3.38]
[1734876490637,2.7202,183.91,183.86,2.7209]
[1734876490839,4.9285,184.02,183.83,3.38]
[1734876491139,4.28996548,184.01,183.87,2.7207]
[1734876491343,0.91000272,184.0,183.84,3.38]
[1734876492442,0.91000272,184.0,183.86,2.7209]
[1734876492443,2.7203,183.91,183.86,2.7209]
[1734876492743,2.7203,183.91,183.75,45.92417569]
[1734876492744,3.38,183.95,183.8,3.38]
[1734876492946,3.38,183.94,183.8,3.38]
[1734876493140,2.7204,183.9,183.8,3.38]
[1734876493541,8.5039,183.93,183.8,3.38]
[1734876493736,2.7205,183.89,183.84,2.7211]
[1734876493945,8.5039,183.93,183.75,45.92417569]
[1734876494147,8.5039,183.93,183.76,3.38]
[1734876494649,2.7206,183.88,183.78,2.7221]
[1734876494845,3.38,183.87,183.76,3.38]
[1734876495046,3.38,183.86,183.76,3.38]
[1734876495248,2.7213,183.83,183.77,2.7222]
[1734876495642,3.38,183.86,183.77,2.7222]
[1734876495845,2.7213,183.84,183.77,2.7222]
[1734876496144,3.38,183.86,183.77,2.7222]
[1734876496546,2.7215,183.82,183.77,2.7222]
[1734876496846,3.38,183.86,183.75,2.25614609]
[1734876497043,2.7219,183.8,183.75,2.25614609]
[1734876497547,3.3588,183.84,183.75,4.97854609]
[1734876497749,3.3588,183.84,183.75,2.25614609]
[1734876497951,3.3588,183.84,183.69,2.7233]
[1734876498144,16.32,183.83,183.64,59.51276644]
[1734876498345,2.7232,183.71,183.64,59.51276644]
[1734876498541,3.38,183.76,183.64,59.51276644]
[1734876498852,1.6209,183.75,183.64,59.51276644]
[1734876499049,1.6209,183.75,183.67,2.7237]
[1734876500045,4.3435,183.75,183.69,2.7234]
[1734876500351,3.38,183.79,183.65,3.38]
[1734876501448,3.38,183.79,183.7,2.7233]
[1734876501748,3.38,183.79,183.65,3.38]
[1734876501948,3.38,183.79,183.66,1.6859]
[1734876502842,2.7224,183.76,183.67,3.38]
[1734876504055,3.38,183.79,183.67,3.38]
[1734876504648,2.7224,183.76,183.67,3.38]
[1734876504846,3.38,183.79,183.67,3.38]
[1734876505751,2.7223,183.77,183.67,3.38]
[1734876506253,2.7227,183.74,183.67,3.38]
[1734876506443,3.38,183.79,183.67,3.38]
[1734876507243,2.7226,183.75,183.67,3.38]
[1734876507645,3.38,183.79,183.69,2.7234]
[1734876507849,3.38,183.79,183.67,3.28]
[1734876509456,2.7225,183.75,183.71,2.7231]
[1734876509660,2.7225,183.75,183.67,3.28]
[1734876510459,2.7224,183.77,183.67,3.28]
[1734876510652,1.6539,183.81,183.67,3.28]
[1734876510847,1.6539,183.81,183.68,1.674]
[1734876511855,2.7226,183.75,183.68,1.674]
[1734876512356,2.7226,183.75,183.7,2.7231]
[1734876512864,2.7226,183.75,183.68,4.954]